{"text_format":"3","workbook":"xlsx","n_sheets":2,"sheets":["מלאיציועובדים","הגדרות"],"not_rendered":{"defined_names":4},"read":"whole","date_system":"1900"}

{"sheet":"מלאיציועובדים","index":0,"n_rows":35,"n_cols":6,"rows_kept":35,"merged":[[0,1,2,2],[0,4,0,5]]}
[]
[{"$nulls":4},"סימון פריטים שגילם עולה על:"]
[{"$nulls":4},2]
[]
[null,"מזהה פריט","שם פריט","מוקצה ל","תאריך הנפקה","גיל הפריט"]
[null,"עובד0001","כיסא","עובד 1",{"$f":"TODAY()-25","v":"2012-11-24"},{"$f":"IF(tblEquipmentInventory[[#This Row],[תאריך הנפקה]]<>\"\",TODAY()-tblEquipmentInventory[[#This Row],[תאריך הנפקה]],\"\")","v":{"v":25,"d":"25 יום"}}]
[null,"עובד0002","מדפסת לייזר","עובד 2",{"$f":"TODAY()-479","v":"2011-08-28"},{"$f":"IF(tblEquipmentInventory[[#This Row],[תאריך הנפקה]]<>\"\",TODAY()-tblEquipmentInventory[[#This Row],[תאריך הנפקה]],\"\")","v":{"v":479,"d":"479 יום"}}]
[null,"עובד0003","סורק","עובד 3",{"$f":"TODAY()-177","v":"2012-06-25"},{"$f":"IF(tblEquipmentInventory[[#This Row],[תאריך הנפקה]]<>\"\",TODAY()-tblEquipmentInventory[[#This Row],[תאריך הנפקה]],\"\")","v":{"v":177,"d":"177 יום"}}]
[null,"עובד0004","מדפסת לייזר","עובד 7",{"$f":"TODAY()-18","v":"2012-12-01"},{"$f":"IF(tblEquipmentInventory[[#This Row],[תאריך הנפקה]]<>\"\",TODAY()-tblEquipmentInventory[[#This Row],[תאריך הנפקה]],\"\")","v":{"v":18,"d":"18 יום"}}]
[null,"עובד0005","מכונת קפה","עובד 20",{"$f":"TODAY()-227","v":"2012-05-06"},{"$f":"IF(tblEquipmentInventory[[#This Row],[תאריך הנפקה]]<>\"\",TODAY()-tblEquipmentInventory[[#This Row],[תאריך הנפקה]],\"\")","v":{"v":227,"d":"227 יום"}}]
[null,"עובד0006","סורק","עובד 14",{"$f":"TODAY()-50","v":"2012-10-30"},{"$f":"IF(tblEquipmentInventory[[#This Row],[תאריך הנפקה]]<>\"\",TODAY()-tblEquipmentInventory[[#This Row],[תאריך הנפקה]],\"\")","v":{"v":50,"d":"50 יום"}}]
[null,"עובד0007","שולחן","עובד 4",{"$f":"TODAY()-120","v":"2012-08-21"},{"$f":"IF(tblEquipmentInventory[[#This Row],[תאריך הנפקה]]<>\"\",TODAY()-tblEquipmentInventory[[#This Row],[תאריך הנפקה]],\"\")","v":{"v":120,"d":"120 יום"}}]
[null,"עובד0008","מכונת צילום","עובד 12",{"$f":"TODAY()-499","v":"2011-08-08"},{"$f":"IF(tblEquipmentInventory[[#This Row],[תאריך הנפקה]]<>\"\",TODAY()-tblEquipmentInventory[[#This Row],[תאריך הנפקה]],\"\")","v":{"v":499,"d":"499 יום"}}]
[null,"עובד0009","צג מחשב נוסף","עובד 8",{"$f":"TODAY()-30","v":"2012-11-19"},{"$f":"IF(tblEquipmentInventory[[#This Row],[תאריך הנפקה]]<>\"\",TODAY()-tblEquipmentInventory[[#This Row],[תאריך הנפקה]],\"\")","v":{"v":30,"d":"30 יום"}}]
[null,"עובד0010","לוח ציור","עובד 19",{"$f":"TODAY()-50","v":"2012-10-30"},{"$f":"IF(tblEquipmentInventory[[#This Row],[תאריך הנפקה]]<>\"\",TODAY()-tblEquipmentInventory[[#This Row],[תאריך הנפקה]],\"\")","v":{"v":50,"d":"50 יום"}}]
[null,"עובד0011","מכונת צילום","עובד 12",{"$f":"TODAY()-450","v":"2011-09-26"},{"$f":"IF(tblEquipmentInventory[[#This Row],[תאריך הנפקה]]<>\"\",TODAY()-tblEquipmentInventory[[#This Row],[תאריך הנפקה]],\"\")","v":{"v":450,"d":"450 יום"}}]
[null,"עובד0012","נייר מכתבים","עובד 18",{"$f":"TODAY()-420","v":"2011-10-26"},{"$f":"IF(tblEquipmentInventory[[#This Row],[תאריך הנפקה]]<>\"\",TODAY()-tblEquipmentInventory[[#This Row],[תאריך הנפקה]],\"\")","v":{"v":420,"d":"420 יום"}}]
[null,"עובד0013","צג מחשב נוסף","עובד 8",{"$f":"TODAY()-250","v":"2012-04-13"},{"$f":"IF(tblEquipmentInventory[[#This Row],[תאריך הנפקה]]<>\"\",TODAY()-tblEquipmentInventory[[#This Row],[תאריך הנפקה]],\"\")","v":{"v":250,"d":"250 יום"}}]
[null,"עובד0014","מכונת קפה","עובד 9",{"$f":"TODAY()-45","v":"2012-11-04"},{"$f":"IF(tblEquipmentInventory[[#This Row],[תאריך הנפקה]]<>\"\",TODAY()-tblEquipmentInventory[[#This Row],[תאריך הנפקה]],\"\")","v":{"v":45,"d":"45 יום"}}]
[null,"עובד0015","נייר מכתבים","עובד 13",{"$f":"TODAY()-502","v":"2011-08-05"},{"$f":"IF(tblEquipmentInventory[[#This Row],[תאריך הנפקה]]<>\"\",TODAY()-tblEquipmentInventory[[#This Row],[תאריך הנפקה]],\"\")","v":{"v":502,"d":"502 יום"}}]
[null,"עובד0016","סורק","עובד 1",{"$f":"TODAY()-350","v":"2012-01-04"},{"$f":"IF(tblEquipmentInventory[[#This Row],[תאריך הנפקה]]<>\"\",TODAY()-tblEquipmentInventory[[#This Row],[תאריך הנפקה]],\"\")","v":{"v":350,"d":"350 יום"}}]
[null,"עובד0017","מכונת צילום","עובד 19",{"$f":"TODAY()-125","v":"2012-08-16"},{"$f":"IF(tblEquipmentInventory[[#This Row],[תאריך הנפקה]]<>\"\",TODAY()-tblEquipmentInventory[[#This Row],[תאריך הנפקה]],\"\")","v":{"v":125,"d":"125 יום"}}]
[null,"עובד0018","לוח ציור","עובד 15",{"$f":"TODAY()-90","v":"2012-09-20"},{"$f":"IF(tblEquipmentInventory[[#This Row],[תאריך הנפקה]]<>\"\",TODAY()-tblEquipmentInventory[[#This Row],[תאריך הנפקה]],\"\")","v":{"v":90,"d":"90 יום"}}]
[null,"עובד0019","כיסא","עובד 16",{"$f":"TODAY()-730","v":"2010-12-20"},{"$f":"IF(tblEquipmentInventory[[#This Row],[תאריך הנפקה]]<>\"\",TODAY()-tblEquipmentInventory[[#This Row],[תאריך הנפקה]],\"\")","v":{"v":730,"d":"730 יום"}}]
[null,"עובד0020","מטלית ניקוי אבק (ערכה אחת)","עובד 3",{"$f":"TODAY()-540","v":"2011-06-28"},{"$f":"IF(tblEquipmentInventory[[#This Row],[תאריך הנפקה]]<>\"\",TODAY()-tblEquipmentInventory[[#This Row],[תאריך הנפקה]],\"\")","v":{"v":540,"d":"540 יום"}}]
[null,"עובד0021","מדפסת לייזר","עובד 7",{"$f":"TODAY()-18","v":"2012-12-01"},{"$f":"IF(tblEquipmentInventory[[#This Row],[תאריך הנפקה]]<>\"\",TODAY()-tblEquipmentInventory[[#This Row],[תאריך הנפקה]],\"\")","v":{"v":18,"d":"18 יום"}}]
[null,"עובד0022","מחשב נישא","עובד 8",{"$f":"TODAY()-283","v":"2012-03-11"},{"$f":"IF(tblEquipmentInventory[[#This Row],[תאריך הנפקה]]<>\"\",TODAY()-tblEquipmentInventory[[#This Row],[תאריך הנפקה]],\"\")","v":{"v":283,"d":"283 יום"}}]
[null,"עובד0023","נייר מכתבים","עובד 9",{"$f":"TODAY()-479","v":"2011-08-28"},{"$f":"IF(tblEquipmentInventory[[#This Row],[תאריך הנפקה]]<>\"\",TODAY()-tblEquipmentInventory[[#This Row],[תאריך הנפקה]],\"\")","v":{"v":479,"d":"479 יום"}}]
[null,"עובד0024","מדפסת לייזר","עובד 19",{"$f":"TODAY()-355","v":"2011-12-30"},{"$f":"IF(tblEquipmentInventory[[#This Row],[תאריך הנפקה]]<>\"\",TODAY()-tblEquipmentInventory[[#This Row],[תאריך הנפקה]],\"\")","v":{"v":355,"d":"355 יום"}}]
[null,"עובד0025","שולחן","עובד 7",{"$f":"TODAY()-28","v":"2012-11-21"},{"$f":"IF(tblEquipmentInventory[[#This Row],[תאריך הנפקה]]<>\"\",TODAY()-tblEquipmentInventory[[#This Row],[תאריך הנפקה]],\"\")","v":{"v":28,"d":"28 יום"}}]
[null,"עובד0026","לוח ציור","עובד 8",{"$f":"TODAY()-28","v":"2012-11-21"},{"$f":"IF(tblEquipmentInventory[[#This Row],[תאריך הנפקה]]<>\"\",TODAY()-tblEquipmentInventory[[#This Row],[תאריך הנפקה]],\"\")","v":{"v":28,"d":"28 יום"}}]
[null,"עובד0027","מחשב נישא","עובד 19",{"$f":"TODAY()-736","v":"2010-12-14"},{"$f":"IF(tblEquipmentInventory[[#This Row],[תאריך הנפקה]]<>\"\",TODAY()-tblEquipmentInventory[[#This Row],[תאריך הנפקה]],\"\")","v":{"v":736,"d":"736 יום"}}]
[null,"עובד0028","שולחן","עובד 12",{"$f":"TODAY()-68","v":"2012-10-12"},{"$f":"IF(tblEquipmentInventory[[#This Row],[תאריך הנפקה]]<>\"\",TODAY()-tblEquipmentInventory[[#This Row],[תאריך הנפקה]],\"\")","v":{"v":68,"d":"68 יום"}}]
[null,"עובד0029","סורק","עובד 14",{"$f":"TODAY()-67","v":"2012-10-13"},{"$f":"IF(tblEquipmentInventory[[#This Row],[תאריך הנפקה]]<>\"\",TODAY()-tblEquipmentInventory[[#This Row],[תאריך הנפקה]],\"\")","v":{"v":67,"d":"67 יום"}}]
[null,"עובד0030","מכונת קפה","עובד 3",{"$f":"TODAY()-149","v":"2012-07-23"},{"$f":"IF(tblEquipmentInventory[[#This Row],[תאריך הנפקה]]<>\"\",TODAY()-tblEquipmentInventory[[#This Row],[תאריך הנפקה]],\"\")","v":{"v":149,"d":"149 יום"}}]

{"sheet":"הגדרות","index":1,"n_rows":23,"n_cols":4,"rows_kept":23}
[]
[]
[null,"עובדים",null,"פריטים"]
[null,"עובד 1",null,"כיסא"]
[null,"עובד 2",null,"מכונת קפה"]
[null,"עובד 3",null,"מכונת צילום"]
[null,"עובד 4",null,"מחשב שולחני"]
[null,"עובד 5",null,"מטלית ניקוי אבק (ערכה אחת)"]
[null,"עובד 6",null,"צג מחשב נוסף"]
[null,"עובד 7",null,"מדפסת הזרקת דיו"]
[null,"עובד 8",null,"מחשב נישא"]
[null,"עובד 9",null,"מדפסת לייזר"]
[null,"עובד 10",null,"עטי סימון (חבילה של 3)"]
[null,"עובד 11",null,"סורק"]
[null,"עובד 12",null,"נייר מכתבים"]
[null,"עובד 13",null,"שולחן"]
[null,"עובד 14",null,"כונן USB"]
[null,"עובד 15",null,"לוח ציור"]
[null,"עובד 16"]
[null,"עובד 17"]
[null,"עובד 18"]
[null,"עובד 19"]
[null,"עובד 20"]